fUST/lending_fUST_20250222
["ID","MTS","AMOUNT","RATE_DAILY","PERIOD"]
[354059708,1740215451196,-656.0,0.00016455,2]
[354059710,1740215451207,-656.0,0.00016455,2]
[354059711,1740215451217,-656.0,0.00016455,2]
[354059713,1740215451227,-656.0,0.00016455,2]
[354059715,1740215451239,-656.0,0.00016455,2]
[354059717,1740215451253,-656.0,0.00016455,2]
[354059719,1740215451263,-462.0,0.00016458,2]
[354059721,1740215451273,-462.0,0.00016458,2]
[354059723,1740215451284,-462.0,0.00016458,2]
[354059725,1740215451294,-462.0,0.00016458,2]
[354059727,1740215451303,-462.0,0.00016458,2]
[354059729,1740215451313,-462.0,0.00016458,2]
[354059730,1740215451324,-462.0,0.00016458,2]
[354059732,1740215451333,-462.0,0.00016458,2]
[354059734,1740215451343,-462.0,0.00016458,2]
[354059736,1740215451354,-462.0,0.00016458,2]
[354059737,1740215451363,-462.0,0.00016458,2]
[354059739,1740215451373,-462.0,0.00016458,2]
[354059741,1740215451382,-462.0,0.00016458,2]
[354059743,1740215451392,-462.0,0.00016458,2]
[354059745,1740215451402,-656.0,0.00016458,2]
[354059747,1740215451412,-656.0,0.00016458,2]
[354059749,1740215451423,-656.0,0.00016458,2]
[354059751,1740215451433,-656.0,0.00016458,2]
[354059753,1740215451442,-656.0,0.00016458,2]
[354059755,1740215451451,-656.0,0.00016458,2]
[354059756,1740215451460,-656.0,0.00016458,2]
[354059758,1740215451469,-656.0,0.00016458,2]
[354059760,1740215451479,-656.0,0.00016458,2]
[354059762,1740215451488,-656.0,0.00016458,2]
[354059764,1740215451498,-656.0,0.00016458,2]
[354059766,1740215451507,-656.0,0.00016458,2]
[354059768,1740215451518,-656.0,0.00016458,2]
[354059770,1740215451527,-656.0,0.00016458,2]
[354059772,1740215451536,-3000.0,0.0001646,2]
[354059773,1740215451545,-462.0,0.00016461,2]
[354059775,1740215451555,-462.0,0.00016461,2]
[354059777,1740215451564,-462.0,0.00016461,2]
[354059779,1740215451573,-462.0,0.00016461,2]
[354059781,1740215451582,-462.0,0.00016461,2]
[354059783,1740215451591,-462.0,0.00016461,2]
[354059785,1740215451602,-462.0,0.00016461,2]
[354059787,1740215451611,-462.0,0.00016461,2]
[354059789,1740215451620,-462.0,0.00016461,2]
[354059790,1740215451629,-462.0,0.00016461,2]
[354059792,1740215451639,-462.0,0.00016461,2]
[354059794,1740215451648,-462.0,0.00016461,2]
[354059796,1740215451657,-462.0,0.00016461,2]
[354059798,1740215451667,-462.0,0.00016461,2]
[354059800,1740215451676,-151.0,0.00016461,2]
[354059802,1740215451685,-656.0,0.00016461,2]
[354059804,1740215451694,-656.0,0.00016461,2]
[354059805,1740215451704,-656.0,0.00016461,2]
[354059807,1740215451713,-656.0,0.00016461,2]
[354059809,1740215451722,-656.0,0.00016461,2]
[354059811,1740215451731,-656.0,0.00016461,2]
[354059813,1740215451741,-656.0,0.00016461,2]
[354059815,1740215451750,-656.0,0.00016461,2]
[354059817,1740215451759,-656.0,0.00016461,2]
[354059819,1740215451768,-656.0,0.00016461,2]
[354059821,1740215451778,-656.0,0.00016461,2]
[354059823,1740215451787,-656.0,0.00016461,2]
[354059824,1740215451796,-656.0,0.00016461,2]
[354059826,1740215451805,-656.0,0.00016461,2]
[354059828,1740215451814,-501.322563,0.0001647,2]
[354059830,1740215451824,-333.642135,0.0001647,2]
[354059832,1740215451833,-333.642135,0.0001647,2]
[354059834,1740215451842,-355.032491,0.0001647,2]
[354059836,1740215451851,-355.032491,0.0001647,2]
[354059838,1740215451861,-1101.75304,0.0001647,2]
[354059839,1740215451870,-1101.75304,0.0001647,2]
[354059841,1740215451879,-270.0,0.0001647,2]
[354059843,1740215451888,-270.0,0.0001647,2]
[354059845,1740215451897,-3000.0,0.0001647,2]
[354059847,1740215451907,-462.0,0.00016479,2]
[354059849,1740215451916,-462.0,0.00016479,2]
[354059851,1740215451925,-462.0,0.00016479,2]
[354059853,1740215451934,-462.0,0.00016479,2]
[354059855,1740215451943,-462.0,0.00016479,2]
[354059856,1740215451952,-462.0,0.00016479,2]
[354059858,1740215451961,-462.0,0.00016479,2]
[354059860,1740215451970,-462.0,0.00016479,2]
[354059862,1740215451980,-462.0,0.00016479,2]
[354059864,1740215451989,-462.0,0.00016479,2]
[354059866,1740215451998,-462.0,0.00016479,2]
[354059868,1740215452007,-462.0,0.00016479,2]
[354059870,1740215452016,-462.0,0.00016479,2]
[354059871,1740215452025,-656.0,0.00016479,2]
[354059873,1740215452034,-656.0,0.00016479,2]
[354059875,1740215452044,-656.0,0.00016479,2]
[354059877,1740215452053,-656.0,0.00016479,2]
[354059879,1740215452062,-656.0,0.00016479,2]
[354059881,1740215452072,-656.0,0.00016479,2]
[354059883,1740215452081,-656.0,0.00016479,2]
[354059885,1740215452090,-656.0,0.00016479,2]
[354059887,1740215452100,-656.0,0.00016479,2]
[354059889,1740215452110,-656.0,0.00016479,2]
[354059891,1740215452119,-656.0,0.00016479,2]
[354059893,1740215452128,-656.0,0.00016479,2]
[354059895,1740215452138,-656.0,0.00016479,2]
[354059897,1740215452147,-3000.0,0.0001648,2]
[354059899,1740215452156,-2396.891565,0.0001648,2]
[354059901,1740215452166,-2396.891565,0.0001648,2]
[354059903,1740215452176,-343.130162,0.0001648,2]
[354059905,1740215452186,-343.130162,0.0001648,2]
[354059907,1740215452195,-251.16502,0.0001648,2]
[354059909,1740215452205,-251.16502,0.0001648,2]
[354059911,1740215452213,-151.0,0.0001648,2]
[354059913,1740215452223,-151.0,0.00016482,2]
[354059915,1740215452232,-273.704788,0.00016482,2]
[354059917,1740215452245,-261.231956,0.00016482,2]
[354059919,1740215452255,-261.231956,0.00016482,2]
[354059921,1740215452264,-1896.083334,0.00016482,2]
[354059924,1740215452274,-1896.083334,0.00016482,2]
[354059926,1740215452285,-3000.0,0.0001649,2]
[354059928,1740215452295,-151.0,0.00016491,2]
[354059930,1740215452304,-356.941771,0.00016491,2]
[354059932,1740215452314,-356.941771,0.00016491,2]
[354059933,1740215452323,-749.50867,0.00016491,2]
[354059934,1740215452333,-749.50867,0.00016491,2]
[354059935,1740215452342,-442.581863,0.00016491,2]
[354059936,1740215452351,-442.581863,0.00016491,2]
[354059937,1740215452361,-151.0,0.000165,2]
[354059938,1740215452370,-3000.0,0.000165,2]
[354059939,1740215452380,-233.83889,0.000165,2]
[354059940,1740215452389,-233.83889,0.000165,2]
[354059941,1740215452398,-361.965309,0.000165,2]
[354059942,1740215452408,-361.965309,0.000165,2]
[354059943,1740215452417,-151.0,0.000165,2]
[354059944,1740215452426,-577.24423,0.000165,2]
[354059945,1740215452437,-577.24423,0.000165,2]
[354059946,1740215452446,-522.990991,0.000165,2]
[354059947,1740215452455,-522.990991,0.000165,2]
[354059948,1740215452464,-151.0,0.000165,2]
[354059949,1740215452474,-1625.411995,0.000165,2]
[354059950,1740215452484,-1625.411995,0.000165,2]
[354059951,1740215452493,-12924.89674434,0.000165,3]
[354059952,1740215452503,-151.0,0.00016503,2]
[354059953,1740215452512,-517.928836,0.00016503,2]
[354059954,1740215452521,-517.928836,0.00016503,2]
[354059955,1740215452530,-3000.0,0.0001651,2]
[354059956,1740215452539,-151.0,0.0001652,2]
[354059957,1740215452548,-3000.0,0.0001652,2]
[354059958,1740215452558,-1000.0,0.00016521,2]
[354059960,1740215452567,-1000.0,0.00016521,2]
[354059961,1740215452576,-3000.0,0.0001653,2]
[354059963,1740215452586,-3000.0,0.0001654,2]
[354059964,1740215452595,-710.43500729,0.00016543,2]
[354059966,1740215452605,-355.032491,0.00016547,2]
[354059968,1740215452614,-355.032491,0.00016547,2]
[354059970,1740215452623,-270.0,0.00016547,2]
[354059972,1740215452632,-270.0,0.00016547,2]
[354059974,1740215452642,-3000.0,0.0001655,2]
[354059976,1740215452651,-3000.0,0.0001656,2]
[354059978,1740215452660,-449.064463,0.0001657,2]
[354059980,1740215452669,-449.064463,0.0001657,2]
[354059982,1740215452679,-3000.0,0.0001657,2]
[354059984,1740215452688,-233.83889,0.0001657,2]
[354059986,1740215452697,-233.83889,0.0001657,2]
[354059988,1740215452706,-577.24423,0.0001657,2]
[354059990,1740215452715,-577.24423,0.0001657,2]
[354059992,1740215452724,-151.0,0.0001658,2]
[354059994,1740215452733,-501.322563,0.0001658,2]
[354059996,1740215452742,-333.642135,0.0001658,2]
[354059998,1740215452751,-333.642135,0.0001658,2]
[354060000,1740215452761,-1101.75304,0.0001658,2]
[354060002,1740215452770,-1101.75304,0.0001658,2]
[354060004,1740215452779,-151.0,0.0001658,2]
[354060006,1740215452788,-3729.204039,0.0001658,2]
[354060008,1740215452797,-151.0,0.0001658,2]
[354060010,1740215452806,-710.43500729,0.00016643,2]
[354060012,1740215452815,-597.823727,0.00016645,2]
[354060014,1740215452824,-597.823727,0.00016645,2]
[354060016,1740215452834,-2396.891565,0.00016645,2]
[354060018,1740215452843,-2396.891565,0.00016645,2]
[354060020,1740215452852,-251.16502,0.00016645,2]
[354060022,1740215452861,-251.16502,0.00016645,2]
[354060024,1740215452870,-1000.262783,0.0001666,2]
[354060026,1740215452880,-501.70800746,0.00016712,2]
[354060028,1740215452889,-710.43500729,0.00016743,2]
[354060030,1740215452898,-209.84879352,0.000168,2]
[354060032,1740215452907,-889.39145222,0.000168,7]
[354060034,1740215452916,-261.231956,0.000168,2]
[354060036,1740215452926,-261.231956,0.000168,2]
[354060038,1740215452935,-361.965309,0.00016828,2]
[354060049,1740215453012,-361.965309,0.00016828,2]
[354060051,1740215453032,-522.990991,0.00016828,2]
[354060053,1740215453042,-522.990991,0.00016828,2]
[354060055,1740215453051,-710.43500729,0.00016843,2]
[354060057,1740215453060,-2950.0,0.0001687,2]
[354060059,1740215453070,-240.187501,0.0001687,2]
[354060061,1740215453079,-465.11002185,0.00016912,2]
[354060063,1740215453089,-710.43500729,0.00016943,2]
[354060065,1740215453099,-150.0,0.00016968,4]
[354060067,1740215453109,-1000.0,0.00017,17]
[354060069,1740215453118,-58274.02259083,0.00017,2]
[354060071,1740215453127,-1000.21247836,0.00017,2]
[354060073,1740215453137,-151.0,0.00017,2]
[354060075,1740215453147,-151.0,0.00017,2]
[354060077,1740215453156,-501.322563,0.00017,2]
[354060079,1740215453165,-333.642135,0.00017,2]
[354060081,1740215453175,-333.642135,0.00017,2]
[354060083,1740215453184,-500.0,0.00017,7]
[354060085,1740215453193,-500.0,0.00017,7]
[354060087,1740215453202,-500.0,0.00017,7]
[354060089,1740215453212,-500.0,0.00017,7]
[354060091,1740215453221,-639.03,0.00017,7]
[354060092,1740215453232,-500.0,0.00017,7]
[354060094,1740215453245,-649.64,0.00017,7]
[354060097,1740215453256,-355.032491,0.00017,2]
[354060099,1740215453266,-355.032491,0.00017,2]
[354060100,1740215453275,-270.0,0.00017,2]
[354060103,1740215453286,-270.0,0.00017,2]
[354060105,1740215453295,-151.0,0.00017,2]
[354060107,1740215453304,-517.928836,0.00017,2]
[354060109,1740215453314,-517.928836,0.00017,2]
[354060111,1740215453323,-151.0,0.00017,2]
[354060113,1740215453333,-151.0,0.00017,2]
[354060115,1740215453343,-356.941771,0.00017,2]
[354060117,1740215453354,-356.941771,0.00017,2]
[354060119,1740215453363,-749.50867,0.00017,2]
[354060121,1740215453375,-749.50867,0.00017,2]
[354060123,1740215453384,-1625.411995,0.00017,2]
[354060125,1740215453392,-1625.411995,0.00017,2]
[354060127,1740215453402,-442.581863,0.00017,2]
[354060129,1740215453411,-442.581863,0.00017,2]
[354060131,1740215453420,-151.0,0.00017,2]
[354060133,1740215453430,-343.130162,0.00017,2]
[354060135,1740215453439,-343.130162,0.00017,2]
[354060137,1740215453449,-1896.083334,0.00017,2]
[354060139,1740215453458,-1896.083334,0.00017,2]
[354060141,1740215453467,-151.0,0.00017,2]
[354060143,1740215453477,-355.293833,0.00017041,2]
[354060145,1740215453486,-355.293833,0.00017041,2]
[354060147,1740215453496,-355.293833,0.00017041,2]
[354060149,1740215453505,-355.293833,0.00017041,2]
[354060151,1740215453514,-355.293833,0.00017041,2]
[354060153,1740215453524,-537.5087565,0.00017041,2]
[354060155,1740215453533,-710.43500729,0.00017043,2]
[354060157,1740215453542,-29821.69848589,0.0001711,2]
[354060159,1740215453552,-449.064463,0.0001711,2]
[354060161,1740215453561,-449.064463,0.0001711,2]
[354060163,1740215453571,-597.823727,0.0001711,2]
[354060165,1740215453581,-597.823727,0.0001711,2]
[354060167,1740215453590,-1101.75304,0.0001711,2]
[354060169,1740215453600,-1101.75304,0.0001711,2]
[354060171,1740215453610,-151.0,0.0001711,2]
[354060173,1740215453620,-233.83889,0.0001711,2]
[354060175,1740215453631,-233.83889,0.0001711,2]
[354060177,1740215453640,-361.965309,0.0001711,2]
[354060179,1740215453650,-361.965309,0.0001711,2]
[354060181,1740215453660,-151.0,0.0001711,2]
[354060183,1740215453670,-577.24423,0.0001711,2]
[354060185,1740215453678,-577.24423,0.0001711,2]
[354060187,1740215453688,-522.990991,0.0001711,2]
[354060189,1740215453697,-522.990991,0.0001711,2]
[354060191,1740215453706,-2396.891565,0.0001711,2]
[354060193,1740215453716,-2396.8915667,0.0001711,2]
[354060195,1740215453725,-261.231956,0.0001711,2]
[354060197,1740215453735,-261.231966,0.0001711,2]
[354060199,1740215453744,-251.16502,0.0001711,2]
[354060201,1740215453753,-251.16503,0.0001711,2]
[354060203,1740215453762,-710.43500729,0.00017143,2]
[354060205,1740215453772,-151.18936095,0.00017159,4]
[354060207,1740215453782,-154.796407,0.00017178,2]
[354060209,1740215453791,-154.796407,0.00017178,2]
[354060211,1740215453801,-153.0,0.00017178,2]
[354060213,1740215453810,-154.796407,0.00017178,2]
[354060215,1740215453820,-430.739835,0.00017178,2]
[354060217,1740215453831,-154.796407,0.00017178,2]
[354060219,1740215453840,-153.0,0.00017178,2]
[354060221,1740215453849,-154.796407,0.00017178,2]
[354060223,1740215453859,-154.796407,0.00017178,2]
[354060225,1740215453869,-154.796407,0.00017178,2]
[354060227,1740215453879,-153.0,0.00017178,2]
[354060229,1740215453888,-154.796407,0.00017178,2]
[354060232,1740215453899,-557.2941539,0.00017178,2]
[354060234,1740215453908,-557.2941539,0.00017178,2]
[354060236,1740215453917,-154.796407,0.00017178,2]
[354060238,1740215453926,-153.0,0.00017178,2]
[354060240,1740215453936,-710.43500729,0.00017243,2]
[354060242,1740215453946,-710.43500729,0.00017343,2]
[354060244,1740215453954,-7177.10861212,0.000174,2]
[354060245,1740215453963,-710.43500729,0.00017443,2]
[354060247,1740215453972,-306.4618619,0.00017452,2]
[354060249,1740215453981,-30000.0,0.000175,10]
[354060251,1740215453990,-29218.03297265,0.000175,10]
[354060269,1740215454146,-500.0,0.00013698,2]
[354060271,1740215454155,-500.0,0.00013698,2]
[354060273,1740215454164,-500.0,0.00013698,2]
[354060275,1740215454174,-500.0,0.0001378,2]
[354060277,1740215454184,-500.0,0.00013863,2]
[354060279,1740215454193,-200.94,0.00013945,2]
[354060281,1740215454203,-781.96702735,0.000175,10]
[354060283,1740215454212,-30000.0,0.000175,10]
[354060285,1740215454221,-21704.71134847,0.000175,10]
[354060287,1740215454232,-151.0,0.000175,2]
[354060289,1740215454242,-151.0,0.000175,2]
[354060291,1740215454252,-501.322563,0.000175,2]
[354060293,1740215454261,-333.642135,0.000175,2]
[354060295,1740215454270,-333.642135,0.000175,2]
[354060297,1740215454281,-449.064463,0.000175,2]
[354060300,1740215454291,-449.064455,0.000175,2]
[354060302,1740215454300,-355.032491,0.000175,2]
[354060304,1740215454312,-355.032498,0.000175,2]
[354060306,1740215454321,-597.823727,0.000175,2]
[354060308,1740215454330,-597.823723,0.000175,2]
[354060310,1740215454339,-1101.75304,0.000175,2]
[354060312,1740215454349,-1101.753048,0.000175,2]
[354060314,1740215454359,-270.0,0.000175,2]
[354060316,1740215454367,-270.0,0.000175,2]
[354060318,1740215454376,-151.0,0.000175,2]
[354060320,1740215454385,-233.83889,0.000175,2]
[354060322,1740215454395,-233.83889,0.000175,2]
[354060324,1740215454404,-151.0,0.000175,2]
[354060326,1740215454414,-361.965309,0.000175,2]
[354060328,1740215454423,-361.965309,0.000175,2]
[354060330,1740215454433,-517.928836,0.000175,2]
[354060332,1740215454442,-151.0,0.000175,2]
[354060334,1740215454451,-517.928836,0.000175,2]
[354060335,1740215454459,-577.24423,0.000175,2]
[354060338,1740215454468,-577.24423,0.000175,2]
[354060340,1740215454478,-522.990991,0.000175,2]
[354060342,1740215454487,-522.990991,0.000175,2]
[354060344,1740215454496,-183.851408,0.000175,2]
[354060346,1740215454506,-151.0,0.000175,2]
[354060348,1740215454515,-356.941771,0.000175,2]
[354060350,1740215454524,-356.941771,0.000175,2]
[354060352,1740215454533,-749.50867,0.000175,2]
[354060354,1740215454543,-749.50867,0.000175,2]
[354060356,1740215454552,-1625.411995,0.000175,2]
[354060358,1740215454561,-1625.411995,0.000175,2]
[354060360,1740215454571,-442.581863,0.000175,2]
[354060362,1740215454580,-442.581863,0.000175,2]
[354060364,1740215454589,-151.0,0.000175,2]
[354060366,1740215454599,-343.130162,0.000175,2]
[354060368,1740215454607,-343.13017,0.000175,2]
[354060370,1740215454617,-1896.083334,0.000175,2]
[354060371,1740215454626,-1896.083326,0.000175,2]
[354060374,1740215454636,-151.0,0.000175,2]
[354060375,1740215454645,-659.28722033,0.000175,2]
[354060378,1740215454655,-1500.0,0.00017522,2]
[354060379,1740215454664,-500.0,0.00017522,2]
[354060381,1740215454673,-710.43500729,0.00017543,2]
[354060383,1740215454683,-1823.84268416,0.000176,2]
[354060729,1740215516477,231.838608,9.041e-05,2]
[354060734,1740216344163,-407.84564783,0.00013034,2]
[354060775,1740216632198,-256.55234567,0.00013034,2]
[354060776,1740216632254,-1123.7755778,0.00013034,2]
[354060779,1740216632415,-502.23050902,0.00013473,2]
[354060780,1740216632430,-281.48370222,0.00013473,2]
[354060781,1740216632439,-6371.76003878,0.000135,2]
[354060782,1740216632451,-2307.0,0.000135,2]
[354060805,1740216640312,-500.0,0.00013499,2]
[354060806,1740216640322,-488.08260076,0.00013499,2]
[354060807,1740216640332,-165370.5719674,0.000135,2]
[354060808,1740216640341,-502.46473782,0.00013673,2]
[354060809,1740216640350,-503.6698563,0.00013673,2]
[354060810,1740216640360,-5195.28850386,0.00013688,2]
[354060811,1740216640369,-151.0,0.0001369,2]
[354060813,1740216640378,-246.56121835,0.00013697,2]
[354060815,1740216640389,-500.0,0.00013697,2]
[354060816,1740216640399,-500.0,0.00013697,2]
[354060817,1740216640408,-521.92866898,0.00013697,2]
[354060818,1740216640418,-500.0,0.00013697,2]
[354060819,1740216640428,-502.12587265,0.00013698,2]
[354060820,1740216640437,-500.0,0.00013698,2]
[354060821,1740216640446,-500.0,0.00013698,2]
[354060822,1740216640455,-500.0,0.00013698,2]
[354060823,1740216640464,-500.0,0.00013698,2]
[354060824,1740216640474,-500.0,0.00013698,2]
[354060825,1740216640483,-500.0,0.00013698,2]
[354060826,1740216640491,-381.48857592,0.00013698,2]
[354060827,1740216640500,-500.0,0.00013698,2]
[354060828,1740216640510,-500.0,0.00013698,2]
[354060829,1740216640519,-500.0,0.00013698,2]
[354060830,1740216640528,-294.5794044,0.00013698,2]
[354060831,1740216640537,-500.0,0.00013698,2]
[354060832,1740216640546,-362.19803798,0.00013698,2]
[354060833,1740216640555,-500.0,0.00013698,2]
[354060834,1740216640564,-500.0,0.00013698,2]
[354060835,1740216640574,-500.0,0.00013698,2]
[354060836,1740216640583,-500.0,0.00013698,2]
[354060837,1740216640593,-500.0,0.00013698,2]
[354060838,1740216640605,-500.0,0.00013698,2]
[354060839,1740216640614,-500.0,0.00013698,2]
[354060840,1740216640623,-500.0,0.00013698,2]
[354060841,1740216640632,-500.0,0.00013698,2]
[354060842,1740216640641,-559.97609986,0.00013698,2]
[354060843,1740216640649,-500.0,0.00013698,2]
[354060844,1740216640660,-500.0,0.00013698,2]
[354060845,1740216640669,-500.0,0.00013698,2]
[354060846,1740216640678,-500.0,0.00013698,2]
[354060847,1740216640688,-464.38997811,0.00013698,2]
[354060848,1740216640697,-500.0,0.00013698,2]
[354060849,1740216640706,-500.0,0.00013698,2]
[354060850,1740216640715,-500.0,0.00013698,2]
[354060851,1740216640724,-500.0,0.00013698,2]
[354060852,1740216640734,-308.58384707,0.00013698,2]
[354060853,1740216640743,-500.0,0.00013698,2]
[354060854,1740216640753,-213.96652276,0.00013698,2]
[354060855,1740216640763,-500.0,0.00013698,2]
[354060856,1740216640773,-500.0,0.00013698,2]
[354060857,1740216640783,-500.0,0.00013698,2]
[354060858,1740216640793,-500.0,0.00013698,2]
[354060859,1740216640802,-500.0,0.00013698,2]
[354060860,1740216640811,-500.0,0.00013698,2]
[354060861,1740216640820,-500.0,0.00013698,2]
[354060862,1740216640829,-502.17235221,0.00013698,2]
[354060863,1740216640838,-318.91739924,0.00013698,2]
[354060864,1740216640847,-629.92,0.00013698,2]
[354060865,1740216640856,-500.0,0.00013698,2]
[354060866,1740216640866,-500.0,0.00013698,2]
[354060867,1740216640875,-500.0,0.00013698,2]
[354060868,1740216640885,-500.0,0.00013698,2]
[354060869,1740216640894,-500.0,0.00013698,2]
[354060870,1740216640903,-500.0,0.00013698,2]
[354060871,1740216640912,-500.0,0.00013698,2]
[354060872,1740216640922,-500.0,0.00013698,2]
[354060873,1740216640931,-500.0,0.00013698,2]
[354060874,1740216640940,-500.0,0.00013698,2]
[354060875,1740216640949,-500.0,0.00013698,2]
[354060876,1740216640958,-500.0,0.00013698,2]
[354060877,1740216640967,-501.90547418,0.00013698,2]
[354060878,1740216640976,-500.0,0.00013698,2]
[354060879,1740216640985,-500.0,0.00013698,2]
[354060880,1740216640994,-254.94834745,0.00013698,2]
[354060881,1740216641003,-500.0,0.00013698,2]
[354060882,1740216641013,-500.0,0.00013698,2]
[354060883,1740216641022,-500.0,0.00013698,2]
[354060884,1740216641032,-500.0,0.00013698,2]
[354060885,1740216641041,-500.0,0.00013698,2]
[354060886,1740216641051,-500.0,0.00013698,2]
[354060887,1740216641060,-500.0,0.00013698,2]
[354060888,1740216641069,-600.96,0.00013698,2]
[354060889,1740216641078,-500.0,0.00013698,2]
[354060890,1740216641087,-500.0,0.00013698,2]
[354060891,1740216641096,-297.38845522,0.00013698,2]
[354060892,1740216641105,-500.0,0.00013698,2]
[354060893,1740216641114,-500.0,0.00013698,2]
[354060894,1740216641123,-500.0,0.00013698,2]
[354060895,1740216641132,-504.59988527,0.00013698,2]
[354060896,1740216641141,-500.0,0.00013698,2]
[354060897,1740216641150,-500.0,0.00013698,2]
[354060898,1740216641159,-500.0,0.00013698,2]
[354060899,1740216641168,-500.0,0.00013698,2]
[354060900,1740216641179,-500.0,0.00013698,2]
[354060901,1740216641189,-500.0,0.00013698,2]
[354060902,1740216641198,-500.0,0.00013698,2]
[354060903,1740216641207,-500.0,0.00013698,2]
[354060904,1740216641217,-500.0,0.00013698,2]
[354060905,1740216641227,-500.0,0.00013698,2]
[354060906,1740216641236,-548.27,0.00013698,2]
[354060907,1740216641245,-500.0,0.00013698,2]
[354060908,1740216641255,-500.0,0.00013698,2]
[354060909,1740216641265,-500.0,0.00013698,2]
[354060910,1740216641274,-500.0,0.00013698,2]
[354060911,1740216641283,-537.94,0.00013698,2]
[354060912,1740216641293,-506.91924033,0.00013698,2]
[354060913,1740216641303,-293.5474661,0.00013698,2]
[354060914,1740216641313,-625.36247002,0.00013698,2]
[354060915,1740216641323,-500.0,0.00013698,2]
[354060916,1740216641332,-500.0,0.00013698,2]
[354060917,1740216641341,-500.0,0.00013698,2]
[354060918,1740216641350,-500.0,0.00013698,2]
[354060919,1740216641359,-500.0,0.00013698,2]
[354060920,1740216641368,-500.0,0.00013698,2]
[354060921,1740216641377,-500.0,0.00013698,2]
[354060922,1740216641387,-500.0,0.00013698,2]
[354060923,1740216641396,-500.0,0.00013698,2]
[354060924,1740216641404,-588.44,0.00013698,2]
[354060925,1740216641414,-500.0,0.00013698,2]
[354060926,1740216641423,-500.0,0.00013698,2]
[354060927,1740216641433,-500.0,0.00013698,2]
[354060928,1740216641442,-500.0,0.00013698,2]
[354060929,1740216641451,-500.0,0.00013698,2]
[354060930,1740216641460,-500.0,0.00013698,2]
[354060931,1740216641470,-648.21681595,0.00013698,2]
[354060932,1740216641479,-500.0,0.00013698,2]
[354060933,1740216641487,-500.0,0.00013698,2]
[354060934,1740216641496,-503.82539058,0.00013698,2]
[354060935,1740216641506,-500.0,0.00013698,2]
[354060936,1740216641524,-500.0,0.00013698,2]
[354060937,1740216641535,-500.0,0.00013698,2]
[354060938,1740216641544,-500.0,0.00013698,2]
[354060939,1740216641553,-500.0,0.00013698,2]
[354060940,1740216641563,-500.0,0.00013698,2]
[354060941,1740216641572,-500.0,0.00013698,2]
[354060942,1740216641582,-500.0,0.00013698,2]
[354060943,1740216641592,-500.0,0.00013698,2]
[354060944,1740216641604,-500.0,0.00013698,2]
[354060945,1740216641614,-500.0,0.00013698,2]
[354060946,1740216641623,-500.0,0.00013698,2]
[354060947,1740216641632,-500.0,0.00013698,2]
[354060948,1740216641642,-500.0,0.00013698,2]
[354060949,1740216641651,-500.52,0.00013698,2]
[354060950,1740216641661,-500.0,0.00013698,2]
[354060951,1740216641671,-542.03,0.00013698,2]
[354060952,1740216641680,-500.0,0.00013698,2]
[354060953,1740216641691,-500.0,0.00013698,2]